[Event "Early-Titled-Tuesday-Blitz-February-13-2024"]
[Site "Chess.com"]
[Date "2024.02.13"]
[Round "10"]
[White "xakevicius91"]
[Black "AlexTruskavetsky"]
[Result "0-1"]
[WhiteElo "2536"]
[BlackElo "2706"]
[TimeControl "180+1"]
[EndTime "10:00:13 PST"]
[Termination "AlexTruskavetsky won by resignation"]

1. e4 {[%clk 0:03:00.9]} 1... c5 {[%clk 0:02:59.9]} 2. Nf3 {[%clk 0:03:00.6]}
2... Nc6 {[%clk 0:02:59.8]} 3. Bc4 {[%clk 0:03:00.4]} 3... e6 {[%clk 0:02:59]}
4. O-O {[%clk 0:03:00.4]} 4... d5 {[%clk 0:02:58.8]} 5. Bb5 {[%clk 0:03:01]}
5... a6 {[%clk 0:02:59]} 6. Bxc6+ {[%clk 0:03:00.2]} 6... bxc6 {[%clk
0:02:59.9]} 7. Qe2 {[%clk 0:03:00.6]} 7... Nf6 {[%clk 0:02:59.8]} 8. d3 {[%clk
0:03:01.1]} 8... Be7 {[%clk 0:02:59.9]} 9. Nbd2 {[%clk 0:03:00.8]} 9... O-O
{[%clk 0:03:00.2]} 10. b3 {[%clk 0:03:01.4]} 10... a5 {[%clk 0:03:00.3]} 11. a4
{[%clk 0:03:00.4]} 11... Ba6 {[%clk 0:03:00.5]} 12. Bb2 {[%clk 0:03:00.4]} 12...
Rb8 {[%clk 0:03:00.1]} 13. Bc3 {[%clk 0:02:58.2]} 13... Nd7 {[%clk 0:02:53.8]}
14. Rfe1 {[%clk 0:02:56.2]} 14... Bf6 {[%clk 0:02:46.1]} 15. e5 {[%clk
0:02:54.3]} 15... Be7 {[%clk 0:02:46.2]} 16. Rad1 {[%clk 0:02:53.5]} 16... c4
{[%clk 0:02:33.4]} 17. dxc4 {[%clk 0:02:51.7]} 17... Qc7 {[%clk 0:02:29.5]} 18.
h4 {[%clk 0:02:35.1]} 18... Bb4 {[%clk 0:02:18.8]} 19. Qe3 {[%clk 0:02:14.9]}
19... dxc4 {[%clk 0:02:17.1]} 20. bxc4 {[%clk 0:02:06.7]} 20... Bxc3 {[%clk
0:02:15.7]} 21. Qxc3 {[%clk 0:02:06.3]} 21... Rb4 {[%clk 0:02:15.9]} 22. h5
{[%clk 0:02:01.9]} 22... Rxa4 {[%clk 0:02:13.6]} 23. h6 {[%clk 0:02:02.3]} 23...
g6 {[%clk 0:02:11.8]} 24. Qe3 {[%clk 0:02:00.6]} 24... Bxc4 {[%clk 0:02:06.6]}
25. Qg5 {[%clk 0:01:45.3]} 25... Qd8 {[%clk 0:01:58.4]} 26. Nxc4 {[%clk
0:01:26.7]} 26... Rxc4 {[%clk 0:01:57]} 27. Rxd7 {[%clk 0:01:22.2]} 27... Qxg5
{[%clk 0:01:56.1]} 28. Nxg5 {[%clk 0:01:23.1]} 28... Rh4 {[%clk 0:01:54.6]} 29.
Ra1 {[%clk 0:01:17.6]} 29... Rxh6 {[%clk 0:01:54.3]} 30. Rxa5 {[%clk 0:01:15.8]}
30... Rh5 {[%clk 0:01:54.7]} 31. Ne4 {[%clk 0:01:14.6]} 31... Rh4 {[%clk
0:01:52.4]} 32. f3 {[%clk 0:01:12.9]} 32... Rf4 {[%clk 0:01:48.1]} 33. Raa7
{[%clk 0:01:10.1]} 33... Rf5 {[%clk 0:01:46.4]} 34. Ra5 {[%clk 0:01:03.7]} 34...
Rb8 {[%clk 0:01:35.9]} 35. Rc5 {[%clk 0:00:59.8]} 35... Rb5 {[%clk 0:01:29.9]}
36. Rxb5 {[%clk 0:00:23.9]} 36... cxb5 {[%clk 0:01:30.8]} 37. Nf6+ {[%clk
0:00:24.6]} 37... Kg7 {[%clk 0:01:27.2]} 38. Ne8+ {[%clk 0:00:15.7]} 38... Kg8
{[%clk 0:01:27.3]} 39. f4 {[%clk 0:00:12.4]} 39... Rxf4 {[%clk 0:01:27.1]} 40.
Rb7 {[%clk 0:00:08.7]} 40... b4 {[%clk 0:01:25.3]} 41. Nd6 {[%clk 0:00:04.9]}
41... g5 {[%clk 0:01:15.9]} 42. Rb5 {[%clk 0:00:04.8]} 42... Kg7 {[%clk
0:01:15.9]} 43. g3 {[%clk 0:00:04.7]} 43... Rd4 {[%clk 0:01:14.8]} 44. Kf2
{[%clk 0:00:03.8]} 44... Rd2+ {[%clk 0:01:15]} 45. Kf3 {[%clk 0:00:04.2]} 45...
Rxc2 {[%clk 0:01:15.6]} 46. Rxb4 {[%clk 0:00:04.6]} 46... Rc3+ {[%clk
0:01:15.9]} 47. Kf2 {[%clk 0:00:04.7]} 47... Rc5 {[%clk 0:01:14.4]} 48. Re4
{[%clk 0:00:02.9]} 48... Kg6 {[%clk 0:01:14.7]} 49. Re2 {[%clk 0:00:02.6]} 49...
Rd5 {[%clk 0:01:14.1]} 50. g4 {[%clk 0:00:02.8]} 50... f6 {[%clk 0:01:11.3]} 51.
Ne8 {[%clk 0:00:01.7]} 51... fxe5 {[%clk 0:01:09.8]} 52. Nc7 {[%clk 0:00:01.8]}
52... Rd4 {[%clk 0:01:10.3]} 53. Nxe6 {[%clk 0:00:02.1]} 53... Rf4+ {[%clk
0:01:10.6]} 54. Kg2 {[%clk 0:00:02.7]} 54... Rxg4+ {[%clk 0:01:10.9]} 55. Kf3
{[%clk 0:00:03.3]} 55... Ra4 {[%clk 0:01:11]} 56. Rxe5 {[%clk 0:00:03.3]} 56...
h6 {[%clk 0:01:11.7]} 57. Re2 {[%clk 0:00:03.6]} 57... h5 {[%clk 0:01:10.7]} 58.
Kf2 {[%clk 0:00:04.1]} 58... Kf5 {[%clk 0:01:10.5]} 59. Ng7+ {[%clk 0:00:04]}
59... Kg4 {[%clk 0:01:11]} 60. Ne6 {[%clk 0:00:02.9]} 60... Kh4 {[%clk 0:00:53]}
61. Re5 {[%clk 0:00:02.9]} 61... g4 {[%clk 0:00:52.5]} 62. Ng7 {[%clk
0:00:02.2]} 62... Ra2+ {[%clk 0:00:52.7]} 63. Kf1 {[%clk 0:00:02.5]} 63... Kh3
{[%clk 0:00:51.1]} 64. Rxh5+ {[%clk 0:00:02.7]} 64... Kg3 {[%clk 0:00:51.8]} 65.
Nf5+ {[%clk 0:00:02.7]} 65... Kf3 {[%clk 0:00:51.5]} 66. Ke1 {[%clk 0:00:03.3]}
66... Ra1+ {[%clk 0:00:51.1]} 67. Kd2 {[%clk 0:00:03.7]} 67... Kf2 {[%clk
0:00:51.4]} 68. Rg5 {[%clk 0:00:03.6]} 68... Ra4 {[%clk 0:00:51.6]} 69. Ne3
{[%clk 0:00:02.8]} 69... Rd4+ {[%clk 0:00:49.7]} 70. Kc3 {[%clk 0:00:03.2]}
70... Kxe3 {[%clk 0:00:49.6]} 71. Rg8 {[%clk 0:00:02.4]} 71... Rd6 {[%clk
0:00:47.4]} 72. Kc2 {[%clk 0:00:02.7]} 72... Kf3 {[%clk 0:00:47.2]} 73. Rf8+
{[%clk 0:00:01.4]} 73... Kg2 {[%clk 0:00:47.6]} 74. Kc3 {[%clk 0:00:01.7]} 74...
g3 {[%clk 0:00:48.1]} 75. Rg8 {[%clk 0:00:02.6]} 75... Kh2 {[%clk 0:00:48.2]}
76. Rh8+ {[%clk 0:00:02.7]} 76... Kg1 {[%clk 0:00:48.8]} 77. Rg8 {[%clk
0:00:03.6]} 77... g2 {[%clk 0:00:49]} 78. Rxg2+ {[%clk 0:00:04.5]} 78... Kxg2
{[%clk 0:00:49.2]} 79. Kc4 {[%clk 0:00:05.4]} 0-1

[Event "Early-Titled-Tuesday-Blitz-February-13-2024"]
[Site "Chess.com"]
[Date "2024.02.13"]
[Round "10"]
[White "mbojan"]
[Black "Nikolakis2014"]
[Result "0-1"]
[WhiteElo "2857"]
[BlackElo "2727"]
[TimeControl "180+1"]
[EndTime "10:00:16 PST"]
[Termination "Nikolakis2014 won by checkmate"]

1. d4 {[%clk 0:03:00.9]} 1... Nf6 {[%clk 0:02:58.8]} 2. Nf3 {[%clk 0:03:00.7]}
2... e6 {[%clk 0:02:57.9]} 3. c4 {[%clk 0:02:59.8]} 3... c5 {[%clk 0:02:57.3]}
4. d5 {[%clk 0:02:57.3]} 4... d6 {[%clk 0:02:57.5]} 5. Nc3 {[%clk 0:02:54.3]}
5... exd5 {[%clk 0:02:57.4]} 6. cxd5 {[%clk 0:02:54.5]} 6... g6 {[%clk 0:02:58]}
7. e4 {[%clk 0:02:54.8]} 7... a6 {[%clk 0:02:56.7]} 8. a4 {[%clk 0:02:53.2]}
8... Bg7 {[%clk 0:02:56.5]} 9. Be2 {[%clk 0:02:53.3]} 9... Bg4 {[%clk
0:02:55.9]} 10. Nd2 {[%clk 0:02:51.4]} 10... Bxe2 {[%clk 0:02:55.1]} 11. Qxe2
{[%clk 0:02:52.3]} 11... O-O {[%clk 0:02:55.3]} 12. O-O {[%clk 0:02:45.8]} 12...
Re8 {[%clk 0:02:49.9]} 13. a5 {[%clk 0:02:41.6]} 13... Nbd7 {[%clk 0:02:49.7]}
14. Nc4 {[%clk 0:02:40.7]} 14... Ne5 {[%clk 0:02:49.3]} 15. Nb6 {[%clk
0:02:32.3]} 15... Rb8 {[%clk 0:02:48.8]} 16. h3 {[%clk 0:02:31.8]} 16... Nfd7
{[%clk 0:02:45.8]} 17. Nca4 {[%clk 0:02:12.4]} 17... Nxb6 {[%clk 0:02:37]} 18.
Nxb6 {[%clk 0:02:13.3]} 18... Nd7 {[%clk 0:02:37.1]} 19. Nc4 {[%clk 0:02:12.1]}
19... Ne5 {[%clk 0:02:37.2]} 20. Nb6 {[%clk 0:02:12.1]} 20... Nd7 {[%clk
0:02:26.6]} 21. Nc4 {[%clk 0:02:11.3]} 21... Qe7 {[%clk 0:02:20.5]} 22. Re1
{[%clk 0:01:56.5]} 22... Nf6 {[%clk 0:02:13.9]} 23. Qd3 {[%clk 0:01:05.8]} 23...
Nxe4 {[%clk 0:01:21.9]} 24. Bf4 {[%clk 0:01:05.7]} 24... Bd4 {[%clk 0:01:21.3]}
25. Re2 {[%clk 0:01:06.2]} 25... Nxf2 {[%clk 0:00:27.4]} 26. Rxf2 {[%clk
0:00:02.9]} 26... Qe2 {[%clk 0:00:26.7]} 27. Qxe2 {[%clk 0:00:01.8]} 27... Rxe2
{[%clk 0:00:26.7]} 28. Rf1 {[%clk 0:00:02.6]} 28... Rbe8 {[%clk 0:00:26.4]} 29.
Bxd6 {[%clk 0:00:02.9]} 29... Rxf2 {[%clk 0:00:25]} 30. Rxf2 {[%clk 0:00:03.8]}
30... Re1+ {[%clk 0:00:24.8]} 31. Kh2 {[%clk 0:00:04.5]} 31... Bxf2 {[%clk
0:00:25]} 32. Bc7 {[%clk 0:00:05.4]} 32... Rc1 {[%clk 0:00:20]} 33. b3 {[%clk
0:00:05.6]} 33... Rd1 {[%clk 0:00:16.8]} 34. d6 {[%clk 0:00:05.9]} 34... f6
{[%clk 0:00:15.8]} 35. Nb6 {[%clk 0:00:06.1]} 35... Bd4 {[%clk 0:00:12]} 36. d7
{[%clk 0:00:03.2]} 36... Be5+ {[%clk 0:00:12]} 37. Bxe5 {[%clk 0:00:03.9]} 37...
fxe5 {[%clk 0:00:12.3]} 38. Kg3 {[%clk 0:00:04.8]} 38... Kf7 {[%clk 0:00:12.3]}
39. Kf3 {[%clk 0:00:05.4]} 39... Ke7 {[%clk 0:00:12.1]} 40. Ke4 {[%clk
0:00:06.3]} 40... Ke6 {[%clk 0:00:11.9]} 41. Ke3 {[%clk 0:00:04.8]} 41... Rd4
{[%clk 0:00:12.4]} 42. Kf3 {[%clk 0:00:04.1]} 42... g5 {[%clk 0:00:11.8]} 43.
Ke3 {[%clk 0:00:04]} 43... h5 {[%clk 0:00:11.7]} 44. g4 {[%clk 0:00:03.7]} 44...
hxg4 {[%clk 0:00:10.9]} 45. hxg4 {[%clk 0:00:04.6]} 45... Ke7 {[%clk 0:00:11]}
46. Kf3 {[%clk 0:00:05.2]} 46... Rd3+ {[%clk 0:00:09.6]} 47. Ke4 {[%clk
0:00:05.4]} 47... Rxb3 {[%clk 0:00:09.8]} 48. Kxe5 {[%clk 0:00:05.8]} 48... Rxb6
{[%clk 0:00:09.7]} 49. axb6 {[%clk 0:00:06.1]} 49... Kxd7 {[%clk 0:00:09.3]} 50.
Kd5 {[%clk 0:00:04.2]} 50... a5 {[%clk 0:00:09.6]} 51. Kxc5 {[%clk 0:00:04.3]}
51... a4 {[%clk 0:00:10]} 52. Kb4 {[%clk 0:00:02.9]} 52... Kc6 {[%clk
0:00:10.6]} 53. Kxa4 {[%clk 0:00:03.6]} 53... Kxb6 {[%clk 0:00:11.3]} 54. Kb4
{[%clk 0:00:04.5]} 54... Kc6 {[%clk 0:00:11.9]} 55. Kc4 {[%clk 0:00:05.4]} 55...
b5+ {[%clk 0:00:12.3]} 56. Kd4 {[%clk 0:00:05.9]} 56... Kb6 {[%clk 0:00:12.3]}
57. Ke5 {[%clk 0:00:03.9]} 57... b4 {[%clk 0:00:12.5]} 58. Kf5 {[%clk
0:00:04.8]} 58... b3 {[%clk 0:00:12.6]} 59. Kxg5 {[%clk 0:00:05.7]} 59... b2
{[%clk 0:00:13.1]} 60. Kf6 {[%clk 0:00:06.6]} 60... b1=Q {[%clk 0:00:13.4]} 61.
g5 {[%clk 0:00:07.5]} 61... Qf1+ {[%clk 0:00:13.3]} 62. Kg7 {[%clk 0:00:07.5]}
62... Qf5 {[%clk 0:00:13.2]} 63. g6 {[%clk 0:00:07.9]} 63... Kc6 {[%clk
0:00:13.6]} 64. Kh8 {[%clk 0:00:08.5]} 64... Qf6+ {[%clk 0:00:12.6]} 65. g7
{[%clk 0:00:09.4]} 65... Qh6+ {[%clk 0:00:12.4]} 66. Kg8 {[%clk 0:00:10.1]}
66... Kd7 {[%clk 0:00:12.6]} 67. Kf7 {[%clk 0:00:11]} 67... Qe6+ {[%clk
0:00:12.7]} 68. Kf8 {[%clk 0:00:11.7]} 68... Qe8# {[%clk 0:00:13.3]} 0-1

[Event "Early-Titled-Tuesday-Blitz-February-13-2024"]
[Site "Chess.com"]
[Date "2024.02.13"]
[Round "10"]
[White "platy3"]
[Black "jk13"]
[Result "0-1"]
[WhiteElo "2930"]
[BlackElo "2716"]
[TimeControl "180+1"]
[EndTime "10:00:18 PST"]
[Termination "jk13 won by resignation"]

1. e4 {[%clk 0:03:00.2]} 1... e5 {[%clk 0:03:00.2]} 2. Nf3 {[%clk 0:02:59.9]}
2... Nc6 {[%clk 0:03:00.9]} 3. Bc4 {[%clk 0:03:00.5]} 3... Bc5 {[%clk
0:03:00.5]} 4. d3 {[%clk 0:03:00.9]} 4... Nf6 {[%clk 0:03:01.1]} 5. a4 {[%clk
0:03:00.6]} 5... O-O {[%clk 0:03:01.2]} 6. O-O {[%clk 0:03:00.6]} 6... d5 {[%clk
0:02:58.8]} 7. exd5 {[%clk 0:02:59.7]} 7... Nxd5 {[%clk 0:02:59.7]} 8. h3 {[%clk
0:02:59.9]} 8... a5 {[%clk 0:02:48.9]} 9. Re1 {[%clk 0:02:53]} 9... Nb6 {[%clk
0:02:48.8]} 10. Bb5 {[%clk 0:02:52.5]} 10... f6 {[%clk 0:02:47]} 11. Nbd2 {[%clk
0:02:52.8]} 11... Nd4 {[%clk 0:02:36.9]} 12. Ne4 {[%clk 0:02:48.2]} 12... Be7
{[%clk 0:02:30.8]} 13. Nxd4 {[%clk 0:02:43.5]} 13... Qxd4 {[%clk 0:02:26.5]} 14.
Be3 {[%clk 0:02:41.4]} 14... Qd8 {[%clk 0:02:23.5]} 15. Qh5 {[%clk 0:01:42.6]}
15... c6 {[%clk 0:02:01.8]} 16. Bxb6 {[%clk 0:01:31.8]} 16... Qxb6 {[%clk
0:02:02.7]} 17. Bc4+ {[%clk 0:01:32.3]} 17... Kh8 {[%clk 0:02:03.2]} 18. Bb3
{[%clk 0:01:29.7]} 18... Qd4 {[%clk 0:01:48.2]} 19. Ng3 {[%clk 0:01:26.2]} 19...
Qxb2 {[%clk 0:01:39]} 20. Rab1 {[%clk 0:01:26.3]} 20... Qc3 {[%clk 0:01:38]} 21.
Re4 {[%clk 0:01:25.7]} 21... f5 {[%clk 0:01:25.3]} 22. Re2 {[%clk 0:00:58.8]}
22... Bf6 {[%clk 0:01:18.1]} 23. Bc4 {[%clk 0:00:48.4]} 23... Qa3 {[%clk
0:01:01.9]} 24. Qf3 {[%clk 0:00:37.9]} 24... g6 {[%clk 0:00:56.2]} 25. Qe3
{[%clk 0:00:35.4]} 25... Qd6 {[%clk 0:00:50.9]} 26. Qb6 {[%clk 0:00:30.3]} 26...
Qd8 {[%clk 0:00:41.9]} 27. Qb3 {[%clk 0:00:28.3]} 27... Rb8 {[%clk 0:00:35.9]}
28. Nf1 {[%clk 0:00:25.1]} 28... b6 {[%clk 0:00:31]} 29. Ne3 {[%clk 0:00:22.8]}
29... Qd6 {[%clk 0:00:31.2]} 30. Qa2 {[%clk 0:00:21.4]} 30... Bd7 {[%clk
0:00:30.9]} 31. Bb3 {[%clk 0:00:19.7]} 31... Qc5 {[%clk 0:00:28.7]} 32. Nc4
{[%clk 0:00:18.9]} 32... Rfe8 {[%clk 0:00:26.5]} 33. Rbe1 {[%clk 0:00:17.7]}
33... Re7 {[%clk 0:00:24.6]} 34. Nd2 {[%clk 0:00:10.4]} 34... Rbe8 {[%clk
0:00:23.2]} 35. Kh1 {[%clk 0:00:07.5]} 35... Kg7 {[%clk 0:00:22.8]} 36. Qb1
{[%clk 0:00:06]} 36... Bc8 {[%clk 0:00:18.5]} 37. Qa2 {[%clk 0:00:06.2]} 37...
h5 {[%clk 0:00:17.7]} 38. Qb1 {[%clk 0:00:03.8]} 38... h4 {[%clk 0:00:18.2]} 39.
Qd1 {[%clk 0:00:03.3]} 39... Qb4 {[%clk 0:00:17.5]} 40. Nc4 {[%clk 0:00:03]}
40... e4 {[%clk 0:00:14.4]} 41. dxe4 {[%clk 0:00:02.7]} 41... Rxe4 {[%clk
0:00:11.9]} 42. Rxe4 {[%clk 0:00:03]} 42... Rxe4 {[%clk 0:00:12.1]} 43. Rxe4
{[%clk 0:00:03.4]} 43... fxe4 {[%clk 0:00:13]} 44. Nd6 {[%clk 0:00:03.9]} 44...
Bd7 {[%clk 0:00:08.1]} 45. Nxe4 {[%clk 0:00:04.3]} 45... Qxe4 {[%clk 0:00:06.7]}
46. Qxd7+ {[%clk 0:00:04.4]} 46... Be7 {[%clk 0:00:06.9]} 47. Qd1 {[%clk
0:00:02.2]} 47... Qe5 {[%clk 0:00:06.3]} 48. f3 {[%clk 0:00:01.6]} 48... Bd6
{[%clk 0:00:06.6]} 49. Kg1 {[%clk 0:00:02.3]} 49... Bc5+ {[%clk 0:00:06.8]} 50.
Kh1 {[%clk 0:00:02.2]} 50... Bd6 {[%clk 0:00:06.4]} 51. Kg1 {[%clk 0:00:02.8]}
51... Qh2+ {[%clk 0:00:06.9]} 52. Kf2 {[%clk 0:00:03.1]} 52... Bc5+ {[%clk
0:00:06.8]} 53. Ke2 {[%clk 0:00:03]} 53... Qxg2+ {[%clk 0:00:07]} 54. Kd3 {[%clk
0:00:03.8]} 54... Qxh3 {[%clk 0:00:06.7]} 55. Qa1+ {[%clk 0:00:04.1]} 55... Kh6
{[%clk 0:00:05]} 56. Qh8+ {[%clk 0:00:04.2]} 56... Kg5 {[%clk 0:00:05.6]} 57.
Qd8+ {[%clk 0:00:04.8]} 57... Kf4 {[%clk 0:00:05.3]} 58. Qf6+ {[%clk 0:00:04.2]}
58... Kg3 {[%clk 0:00:04.7]} 59. Be6 {[%clk 0:00:03.2]} 59... Qf1+ {[%clk
0:00:04]} 60. Kd2 {[%clk 0:00:03.9]} 60... Qf2+ {[%clk 0:00:04.2]} 61. Kc3
{[%clk 0:00:02.4]} 61... Qxf3+ {[%clk 0:00:04.1]} 62. Qxf3+ {[%clk 0:00:02.6]}
62... Kxf3 {[%clk 0:00:05]} 0-1

[Event "Early-Titled-Tuesday-Blitz-February-13-2024"]
[Site "Chess.com"]
[Date "2024.02.13"]
[Round "10"]
[White "Vaathi_Coming"]
[Black "BogdanDeac"]
[Result "1-0"]
[WhiteElo "2915"]
[BlackElo "2991"]
[TimeControl "180+1"]
[EndTime "10:00:23 PST"]
[Termination "Vaathi_Coming won by resignation"]

1. Nf3 {[%clk 0:02:54.3]} 1... d5 {[%clk 0:02:59.8]} 2. e3 {[%clk 0:02:54.7]}
2... c5 {[%clk 0:02:57.5]} 3. b3 {[%clk 0:02:53.7]} 3... f6 {[%clk 0:02:57]} 4.
d4 {[%clk 0:02:53.1]} 4... cxd4 {[%clk 0:02:56.4]} 5. exd4 {[%clk 0:02:53.4]}
5... Nc6 {[%clk 0:02:57]} 6. Bb2 {[%clk 0:02:49.2]} 6... Bg4 {[%clk 0:02:56.2]}
7. c4 {[%clk 0:02:46.5]} 7... e6 {[%clk 0:02:55.7]} 8. Be2 {[%clk 0:02:47]} 8...
Bd6 {[%clk 0:02:50.2]} 9. O-O {[%clk 0:02:45]} 9... Nge7 {[%clk 0:02:50.4]} 10.
Nbd2 {[%clk 0:02:41.6]} 10... O-O {[%clk 0:02:48.7]} 11. Re1 {[%clk 0:02:41.6]}
11... Qd7 {[%clk 0:02:44.4]} 12. Ne5 {[%clk 0:02:31.1]} 12... Nxe5 {[%clk
0:02:31]} 13. dxe5 {[%clk 0:02:15.6]} 13... Bxe2 {[%clk 0:02:28.1]} 14. Qxe2
{[%clk 0:02:16.5]} 14... fxe5 {[%clk 0:02:24.8]} 15. Bxe5 {[%clk 0:02:17.4]}
15... Bxe5 {[%clk 0:02:25]} 16. Qxe5 {[%clk 0:02:18.3]} 16... Rf6 {[%clk
0:02:18.8]} 17. cxd5 {[%clk 0:02:15.4]} 17... Ng6 {[%clk 0:02:01.4]} 18. Qd4
{[%clk 0:02:06.6]} 18... exd5 {[%clk 0:01:53.6]} 19. Ne4 {[%clk 0:01:59.3]}
19... Rf4 {[%clk 0:01:44.5]} 20. Rad1 {[%clk 0:01:53.9]} 20... Rd8 {[%clk
0:00:54.2]} 21. Qxa7 {[%clk 0:01:32.7]} 21... Nh4 {[%clk 0:00:46.1]} 22. Qc5
{[%clk 0:00:52.7]} 22... Rc8 {[%clk 0:00:15.4]} 23. Qd6 {[%clk 0:00:37.1]} 23...
Qf5 {[%clk 0:00:05.3]} 24. Ng3 {[%clk 0:00:31.9]} 24... Qf7 {[%clk 0:00:05.4]}
25. Re7 {[%clk 0:00:21.2]} 25... Qf8 {[%clk 0:00:05.8]} 26. Rde1 {[%clk
0:00:14.9]} 26... Rxf2 {[%clk 0:00:04.5]} 27. Qe6+ {[%clk 0:00:13.2]} 27... Kh8
{[%clk 0:00:04.3]} 28. Qxc8 {[%clk 0:00:08.3]} 28... Qxc8 {[%clk 0:00:04.5]} 29.
Re8+ {[%clk 0:00:08.7]} 29... Rf8 {[%clk 0:00:04.5]} 30. Rxc8 {[%clk 0:00:09.4]}
30... Rxc8 {[%clk 0:00:05.4]} 31. Rd1 {[%clk 0:00:07.4]} 31... h6 {[%clk
0:00:04.9]} 32. Nf1 {[%clk 0:00:06.5]} 32... Rc2 {[%clk 0:00:05]} 33. Rd2 {[%clk
0:00:06.8]} 33... Rc1 {[%clk 0:00:04.8]} 34. Kf2 {[%clk 0:00:07.3]} 34... Ra1
{[%clk 0:00:04.5]} 35. Ne3 {[%clk 0:00:07.2]} 35... d4 {[%clk 0:00:04.8]} 36.
Rxd4 {[%clk 0:00:04.9]} 36... Rxa2+ {[%clk 0:00:04.7]} 37. Kf1 {[%clk
0:00:04.8]} 37... Ra1+ {[%clk 0:00:04.4]} 38. Kf2 {[%clk 0:00:05.4]} 38... Ra2+
{[%clk 0:00:04.8]} 39. Kg3 {[%clk 0:00:05.8]} 39... Ng6 {[%clk 0:00:05.1]} 40.
Rd8+ {[%clk 0:00:05.3]} 40... Kh7 {[%clk 0:00:04.8]} 41. Rd7 {[%clk 0:00:06.2]}
41... Ne5 {[%clk 0:00:04.8]} 42. Re7 {[%clk 0:00:06.2]} 42... Nc6 {[%clk
0:00:04.6]} 43. Rxb7 {[%clk 0:00:06.3]} 43... Nd4 {[%clk 0:00:04.9]} 44. b4
{[%clk 0:00:06]} 44... Ra3 {[%clk 0:00:04.3]} 45. Kf4 {[%clk 0:00:06.5]} 45...
Ne6+ {[%clk 0:00:04.6]} 46. Ke4 {[%clk 0:00:06.5]} 46... Ng5+ {[%clk 0:00:05]}
47. Kd4 {[%clk 0:00:06.3]} 47... Ne6+ {[%clk 0:00:05.4]} 48. Ke4 {[%clk
0:00:06.3]} 48... Rb3 {[%clk 0:00:05.3]} 49. Nf5 {[%clk 0:00:05]} 49... Nc5+
{[%clk 0:00:05.4]} 50. bxc5 {[%clk 0:00:04.1]} 50... Rxb7 {[%clk 0:00:06]} 51.
c6 {[%clk 0:00:04.9]} 51... Rb2 {[%clk 0:00:05]} 52. Nd4 {[%clk 0:00:03.9]}
52... Rb8 {[%clk 0:00:03.9]} 53. Kd5 {[%clk 0:00:03.7]} 53... Kg6 {[%clk
0:00:04.3]} 54. c7 {[%clk 0:00:03.9]} 54... Rc8 {[%clk 0:00:04.3]} 55. Kd6
{[%clk 0:00:04.5]} 55... Kg5 {[%clk 0:00:04.8]} 56. Kd7 {[%clk 0:00:04.2]} 56...
Rxc7+ {[%clk 0:00:05.3]} 57. Kxc7 {[%clk 0:00:05.1]} 57... Kf4 {[%clk
0:00:05.9]} 58. Ne6+ {[%clk 0:00:05.5]} 58... Ke3 {[%clk 0:00:06.2]} 59. Nxg7
{[%clk 0:00:06.1]} 59... Kf2 {[%clk 0:00:06.9]} 60. g4 {[%clk 0:00:06.2]} 60...
Kg2 {[%clk 0:00:07.2]} 61. Nf5 {[%clk 0:00:05]} 61... Kxh2 {[%clk 0:00:07.6]}
62. Nxh6 {[%clk 0:00:05.3]} 1-0